bitfinex-derivatives/quotes_BTCF0:USTF0_20210105
["timestamp","ask_amount","ask_price","bid_price","bid_amount"]
[1609825505379,4.5219,30871.0,30860.0,0.13632608]
[1609825505580,0.81839379,30872.0,30860.0,0.13632608]
[1609825506278,0.81839379,30872.0,30863.0,3.6391]
[1609825506679,0.67171482,30873.0,30863.0,3.6391]
[1609825507281,0.45631482,30873.0,30863.0,3.6391]
[1609825507479,0.11565,30874.0,30872.0,0.13632608]
[1609825507679,0.82661362,30885.0,30863.0,3.6391]
[1609825508080,0.48608456,30880.0,30863.0,3.6391]
[1609825508980,0.36328456,30880.0,30863.0,3.6391]
[1609825509180,0.11187,30883.0,30863.0,3.6391]
[1609825509383,0.11187,30883.0,30882.0,0.13632608]
[1609825509581,0.56569703,30894.0,30882.0,5.25582608]
[1609825509780,0.56569703,30894.0,30882.0,0.13632608]
[1609825509982,0.56604112,30897.0,30892.0,3.8611]
[1609825510181,0.56604112,30897.0,30882.0,0.13632608]
[1609825511083,0.56698104,30902.0,30882.0,0.13632608]
[1609825511382,0.56698104,30902.0,30894.0,0.13632608]
[1609825511684,0.56698104,30902.0,30881.0,0.12824]
[1609825511886,0.56698104,30902.0,30871.0,0.12123]
[1609825512285,4.022,30884.0,30871.0,0.12123]
[1609825512484,0.13825,30884.0,30790.0,0.2869]
[1609825512685,4.4131,30875.0,30842.0,7.24981982]
[1609825512885,4.55497,30875.0,30842.0,7.24981982]
[1609825513085,0.14187,30875.0,30842.0,2.32251982]
[1609825513286,4.1092,30868.0,30842.0,2.32251982]
[1609825513485,4.24007,30868.0,30842.0,2.12838919]
[1609825514587,0.13087,30868.0,30819.0,2.13158289]
[1609825514788,5.3698,30864.0,30819.0,2.13158289]
[1609825515388,0.13632608,30839.0,30838.0,0.13632608]
[1609825516488,0.14074,30858.0,30816.0,4.7626]
[1609825516690,0.14074,30858.0,30816.0,2.25902532]
[1609825516893,3.9698,30851.0,30816.0,2.25902532]
[1609825517092,0.10208,30851.0,30816.0,2.25902532]
[1609825517292,5.1821,30841.0,30816.0,2.25902532]
[1609825517492,5.31101,30841.0,30816.0,2.25902532]
[1609825518093,0.13632608,30817.0,30816.0,2.25902532]
[1609825518295,0.13632608,30817.0,30816.0,0.12096]
[1609825519094,0.14271,30829.0,30816.0,0.12096]
[1609825519996,0.14271,30829.0,30817.0,0.13632608]
[1609825520195,0.14271,30829.0,30816.0,0.12096]
[1609825520598,0.14271,30829.0,30801.0,5.4438]
[1609825520999,4.487,30825.0,30791.0,2.13979048]
[1609825521201,4.487,30825.0,30790.0,2.13911749]
[1609825522104,4.487,30825.0,30783.0,2.13828209]
[1609825522805,4.487,30825.0,30781.0,4.5965]
[1609825524409,0.13632608,30815.0,30807.0,0.13632608]
[1609825525108,0.71412608,30815.0,30781.0,4.5965]
[1609825526509,0.5778,30815.0,30781.0,4.5965]
[1609825527111,0.13632608,30797.0,30792.0,0.13632608]
[1609825527512,0.13632608,30797.0,30776.0,2.14003371]
[1609825528312,3.9365,30788.0,30776.0,2.14003371]
[1609825528510,0.13632608,30797.0,30776.0,2.14003371]
[1609825528712,4.8645,30777.0,30776.0,2.27262371]
[1609825529313,5.00082608,30777.0,30774.0,2.14145407]
[1609825529712,0.13632608,30777.0,30774.0,1.74955407]
[1609825529914,0.13632608,30777.0,30774.0,0.24465407]
[1609825530413,0.13046,30785.0,30774.0,0.24465407]
[1609825530613,4.0245,30780.0,30774.0,0.24465407]
[1609825530812,0.13046,30785.0,30774.0,0.24465407]
[1609825531014,4.1039,30782.0,30774.0,0.24465407]
[1609825532117,0.13046,30785.0,30774.0,0.24465407]
[1609825532716,0.1537,30794.0,30774.0,0.24465407]
[1609825533116,0.14422,30801.0,30774.0,0.24465407]
[1609825533319,0.12328,30809.0,30774.0,0.24465407]
[1609825533517,0.2966,30827.0,30774.0,0.24465407]
[1609825533717,0.2966,30827.0,30780.0,4.9543]
[1609825533919,0.48743188,30795.0,30780.0,5.08401]
[1609825534118,0.48743188,30795.0,30794.0,0.13632608]
[1609825534318,0.13632608,30802.0,30794.0,0.13632608]
[1609825534720,0.13632608,30802.0,30790.0,0.10124]
[1609825534918,0.11715,30805.0,30790.0,0.10124]
[1609825535419,0.11715,30805.0,30780.0,0.12971]
[1609825536119,0.13632608,30781.0,30780.0,0.12971]
[1609825537719,0.14724,30796.0,30780.0,0.12971]
[1609825538019,0.13632608,30785.0,30774.0,0.24465407]
[1609825540024,0.13632608,30785.0,30783.0,0.13632608]
[1609825540825,0.13632608,30785.0,30774.0,0.24465407]
[1609825541024,0.13632608,30785.0,30774.0,4.88775407]
[1609825542027,0.13632608,30785.0,30774.0,0.24465407]
[1609825542226,0.13632608,30785.0,30784.0,0.13632608]
[1609825542426,0.13632608,30785.0,30774.0,0.24465407]
[1609825543327,0.11692,30789.0,30762.0,0.13937]
[1609825543627,0.14724,30796.0,30762.0,0.13937]
[1609825543827,0.2855,30804.0,30757.0,0.2983]
[1609825544026,4.6356,30793.0,30761.0,0.12913]
[1609825544427,4.73443,30793.0,30761.0,0.12913]
[1609825545027,0.09883,30793.0,30733.0,0.2918]
[1609825545431,0.09883,30793.0,30744.0,4.6848]
[1609825545627,0.09883,30793.0,30744.0,0.10804]
[1609825545829,0.09883,30793.0,30750.0,3.9693]
[1609825546028,0.13632608,30779.0,30766.0,0.13632608]
[1609825546228,0.13632608,30779.0,30767.0,0.6113]
[1609825546428,0.15488,30783.0,30767.0,0.73273]
[1609825546629,0.15488,30783.0,30767.0,0.12143]
[1609825547830,0.15488,30783.0,30762.0,4.7989]
[1609825548228,0.13632608,30763.0,30762.0,4.7989]
[1609825549630,0.14845,30776.0,30762.0,4.7989]
[1609825550335,0.14845,30776.0,30760.0,0.11654]
[1609825552134,0.13632608,30768.0,30760.0,0.11654]
[1609825553137,0.13632608,30768.0,30757.0,0.13632608]
[1609825553536,0.14845,30776.0,30757.0,0.13632608]
[1609825553937,0.15488,30783.0,30757.0,0.24140608]
[1609825554138,4.8489,30787.0,30757.0,0.10508]
[1609825554537,0.52540575,30798.0,30757.0,0.10508]
[1609825554737,0.13632608,30781.0,30757.0,0.10508]
[1609825554937,0.26015608,30781.0,30757.0,0.10508]
[1609825555339,0.26015608,30781.0,30757.0,4.11018]
[1609825555540,0.12383,30781.0,30757.0,4.11018]
[1609825556240,0.14446,30782.0,30757.0,4.11018]
[1609825556440,0.14446,30782.0,30758.0,0.0965]
[1609825556640,0.14446,30782.0,30777.0,0.13632608]
[1609825556840,0.14446,30782.0,30767.0,0.14518]
[1609825558642,0.13632608,30781.0,30775.0,0.13632608]
[1609825559241,0.14446,30782.0,30767.0,0.14518]
[1609825560647,0.13632608,30768.0,30757.0,0.10508]
[1609825560844,0.13632608,30768.0,30749.0,5.3592]
[1609825561044,0.13632608,30768.0,30726.0,0.1956]
[1609825561245,4.4352,30774.0,30731.0,4.5836]
[1609825561444,4.4352,30774.0,30731.0,4.72709]
[1609825562646,0.13632608,30741.0,30740.0,0.13632608]
[1609825563248,0.15918,30761.0,30740.0,0.13632608]
[1609825564246,0.15918,30761.0,30740.0,0.91282608]
[1609825564648,0.15918,30761.0,30752.0,0.13632608]
[1609825565851,0.15918,30761.0,30746.0,0.1252]
[1609825566249,0.15918,30761.0,30739.0,0.14654]
[1609825566652,0.13632608,30740.0,30739.0,0.14654]
[1609825567251,0.13632608,30740.0,30731.0,0.27981608]
[1609825568253,0.13283,30746.0,30731.0,0.27981608]
[1609825568753,0.10234,30753.0,30745.0,0.13632608]
[1609825569354,0.10234,30753.0,30738.0,0.14472]
[1609825570659,0.10234,30753.0,30749.0,0.13632608]
[1609825570862,0.10234,30753.0,30738.0,0.14472]
[1609825571660,0.10234,30753.0,30731.0,0.14349]
[1609825571859,0.6462,30752.0,30718.0,4.8074]
[1609825572063,0.15918,30761.0,30693.0,2.11336966]
[1609825572260,0.52443472,30778.0,30709.0,0.4155]
[1609825572261,4.0437,30749.0,30709.0,0.4155]
[1609825572459,4.0437,30749.0,30709.0,0.1339]
[1609825572660,0.2993,30748.0,30714.0,0.13632608]
[1609825574762,0.13632608,30715.0,30714.0,0.13632608]
[1609825574962,0.12646,30725.0,30714.0,0.13632608]
[1609825575361,0.12646,30725.0,30709.0,0.1339]
[1609825577464,0.12646,30725.0,30689.0,5.3964]
[1609825578769,0.13632608,30708.0,30703.0,0.13632608]
[1609825578968,0.13632608,30708.0,30689.0,5.3964]
[1609825579667,0.13632608,30708.0,30681.0,0.2713]
[1609825580267,0.09688,30718.0,30681.0,0.2713]
[1609825580467,0.09688,30718.0,30681.0,0.15629]
[1609825580868,0.13632608,30691.0,30681.0,0.15629]
[1609825582268,0.15373,30707.0,30681.0,0.15629]
[1609825582869,0.13632608,30700.0,30681.0,0.15629]
[1609825583470,0.15373,30707.0,30681.0,0.15629]
[1609825583672,0.15665,30700.0,30681.0,0.15629]
[1609825584875,0.13632608,30682.0,30681.0,0.15629]
[1609825585474,0.13632608,30682.0,30661.0,0.2946]
[1609825586876,0.13632608,30671.0,30666.0,0.13632608]
[1609825587078,0.15665,30700.0,30666.0,0.13632608]
[1609825587276,0.15665,30700.0,30666.0,0.27435608]
[1609825587876,0.15665,30700.0,30666.0,0.13803]
[1609825588776,0.13632608,30667.0,30666.0,0.13803]
[1609825589677,4.4218,30687.0,30666.0,0.13803]
[1609825590877,0.13632608,30667.0,30662.0,0.11741]
[1609825592478,0.13632608,30667.0,30646.0,4.8947]
[1609825592879,0.14754,30670.0,30648.0,0.13632608]
[1609825593078,0.14754,30670.0,30646.0,4.8947]
[1609825593879,0.14754,30670.0,30627.0,0.1094183]
[1609825594682,0.14754,30670.0,30627.0,0.0112183]
[1609825594880,0.13632608,30641.0,30627.0,0.0112183]
[1609825595081,3.6866,30640.0,30627.0,0.0112183]
[1609825595281,3.6866,30640.0,30611.0,2.10932631]
[1609825595481,4.0726,30623.0,30605.0,2.1107]
[1609825596081,4.0726,30623.0,30572.0,0.0987]
[1609825596684,4.0726,30623.0,30572.0,2.20109503]
[1609825596883,4.0726,30623.0,30590.0,0.13632608]
[1609825597082,4.0726,30623.0,30590.0,0.27489608]
[1609825598385,0.12747,30626.0,30590.0,0.27489608]
[1609825598685,0.12747,30626.0,30590.0,0.13857]
[1609825598886,5.4946,30591.0,30590.0,0.13857]
[1609825599087,5.63092608,30591.0,30590.0,0.13857]
[1609825599290,0.23570608,30591.0,30549.0,2.10459387]
[1609825599485,4.4487,30575.0,30549.0,2.10459387]
[1609825599685,4.4487,30575.0,30549.0,0.12929387]
[1609825599886,0.33370608,30591.0,30549.0,0.12929387]
[1609825600085,3.8157,30564.0,30549.0,0.23017387]
[1609825600287,3.8157,30564.0,30549.0,0.10088]
[1609825600687,0.0995,30578.0,30549.0,0.10088]
[1609825600888,0.13974,30572.0,30549.0,0.10088]
[1609825601089,0.13632608,30556.0,30549.0,0.09888591]
[1609825601288,0.01701528,30580.0,30549.0,0.09888591]
[1609825602089,0.52416472,30589.0,30549.0,0.09888591]
[1609825602490,0.09938,30591.0,30549.0,0.09888591]
[1609825602889,0.09938,30591.0,30556.0,4.7722]
[1609825603088,0.09938,30591.0,30556.0,4.90065]
[1609825603489,0.01717157,30600.0,30556.0,4.90065]
[1609825603690,0.13632608,30589.0,30576.0,0.13632608]
[1609825604492,0.13632608,30589.0,30556.0,4.90065]
[1609825604690,0.13632608,30589.0,30556.0,0.12845]
[1609825605091,0.15527,30594.0,30556.0,0.12845]
[1609825605292,0.15527,30594.0,30559.0,4.5658]
[1609825605791,0.13632608,30589.0,30575.0,0.13632608]
[1609825606192,0.15527,30594.0,30559.0,4.5658]
[1609825606995,0.11175,30602.0,30559.0,4.5658]
[1609825607194,0.01698403,30620.0,30559.0,4.5658]
[1609825607394,0.01698403,30620.0,30578.0,3.9051]
[1609825607594,0.01698403,30620.0,30578.0,4.01068]
[1609825608195,0.50464422,30621.0,30613.0,0.13632608]
[1609825608396,0.50339344,30639.0,30613.0,0.13632608]
[1609825609599,0.50615379,30656.0,30613.0,0.03677664]
[1609825609796,0.48993221,30638.0,30613.0,0.03677664]
[1609825610198,0.48993221,30638.0,30609.0,0.13501]
[1609825610799,0.13632608,30615.0,30609.0,0.13501]
[1609825611200,0.10885,30626.0,30609.0,0.13301874]
[1609825612700,0.13632608,30610.0,30602.0,0.14519]
[1609825613100,5.287,30610.0,30602.0,0.14519]
[1609825613300,5.41043,30610.0,30602.0,0.14519]
[1609825613500,5.41043,30610.0,30602.0,0.06519]
[1609825613700,5.41043,30610.0,30579.0,0.2813]
[1609825615003,5.0876,30595.0,30579.0,0.2813]
[1609825615203,5.20873,30595.0,30579.0,0.1871]
[1609825615403,0.13632608,30580.0,30579.0,0.1871]
[1609825615604,4.96022608,30580.0,30579.0,0.1871]
[1609825616004,0.13632608,30580.0,30579.0,0.0411]
[1609825616203,0.13632608,30580.0,30534.0,4.7113]
[1609825616803,0.5719,30579.0,30534.0,4.7113]
[1609825617405,0.13632608,30535.0,30529.0,0.13632608]
[1609825618207,0.12911,30554.0,30529.0,0.13632608]
[1609825618407,5.3912,30553.0,30529.0,0.27353608]
[1609825618607,5.3912,30553.0,30529.0,0.13721]
[1609825619411,0.13632608,30530.0,30529.0,0.13721]
[1609825619609,4.07142608,30530.0,30529.0,0.13721]
[1609825619811,0.13632608,30530.0,30468.0,0.01147134]
[1609825620009,0.29155608,30530.0,30468.0,0.01147134]
[1609825620409,0.15523,30530.0,30468.0,0.01147134]
[1609825620610,4.6926,30518.0,30468.0,0.01147134]
[1609825621011,0.15523,30530.0,30468.0,0.01147134]
[1609825621212,4.0285,30526.0,30468.0,0.16149134]
[1609825621412,0.13632608,30507.0,30504.0,0.13632608]
[1609825621613,0.13632608,30507.0,30478.0,4.2569]
[1609825622013,5.63313,30530.0,30478.0,4.2569]
[1609825622214,5.63313,30530.0,30478.0,4.36752]
[1609825623414,0.13632608,30510.0,30495.0,0.13632608]
[1609825623815,5.63313,30530.0,30478.0,4.36752]
[1609825625417,0.13632608,30509.0,30501.0,0.13632608]
[1609825626017,0.13632608,30509.0,30478.0,0.11062]
[1609825626217,4.9383,30514.0,30478.0,0.11062]
[1609825627420,4.9383,30514.0,30495.0,0.13632608]
[1609825627631,4.9383,30514.0,30495.0,0.23445608]
[1609825628921,0.15523,30530.0,30495.0,0.23445608]
[1609825629121,4.1798,30536.0,30495.0,0.23445608]
[1609825629719,0.12134,30537.0,30495.0,0.23445608]
[1609825629920,0.10761,30545.0,30495.0,0.23445608]
[1609825630122,5.1842,30560.0,30495.0,0.23445608]
[1609825630722,5.1842,30560.0,30496.0,0.0996]
[1609825630923,5.1842,30560.0,30496.0,0.3982]
[1609825631322,0.49079824,30567.0,30496.0,0.3982]
[1609825631523,0.49079824,30567.0,30538.0,0.13632608]
[1609825632123,0.18009824,30567.0,30533.0,0.13273]
[1609825632523,0.18009824,30567.0,30535.0,4.3028]
[1609825633126,0.21882341,30569.0,30535.0,4.3028]
[1609825633325,0.21882341,30569.0,30533.0,0.13273]
[1609825633525,0.21882341,30569.0,30568.0,0.13632608]
[1609825633725,0.21882341,30569.0,30568.0,0.29135608]
[1609825634127,0.71982402,30580.0,30568.0,0.29135608]
[1609825634526,0.71982402,30580.0,30568.0,0.15503]
[1609825635730,0.34422402,30580.0,30568.0,0.15503]
[1609825636730,0.34422402,30580.0,30579.0,0.13632608]
[1609825636929,0.34422402,30580.0,30579.0,0.24237608]
[1609825638133,0.81795954,30583.0,30579.0,0.24237608]
[1609825638533,0.13632608,30592.0,30579.0,0.24237608]
[1609825638731,0.13632608,30592.0,30587.0,0.13632608]
[1609825638931,0.2874,30614.0,30587.0,0.13632608]
[1609825639933,0.83770213,30634.0,30587.0,0.13433324]
[1609825640733,0.83770213,30634.0,30626.0,0.13632608]
[1609825641334,0.83770213,30634.0,30614.0,0.09933]
[1609825641536,0.27102608,30635.0,30614.0,0.09933]
[1609825642133,0.27102608,30635.0,30614.0,0.10849]
[1609825642733,0.1347,30635.0,30626.0,0.13632608]
[1609825642933,0.1347,30635.0,30614.0,0.10849]
[1609825643137,0.1347,30635.0,30614.0,0.00916]
[1609825645236,0.13632608,30626.0,30614.0,0.00916]
[1609825646239,0.13632608,30626.0,30596.0,0.12158]
[1609825646839,0.13632608,30626.0,30586.0,0.13783]
[1609825647040,0.13632608,30626.0,30579.0,0.10605]
[1609825647239,0.13632608,30626.0,30610.0,0.13632608]
[1609825647439,0.13632608,30626.0,30610.0,0.25185608]
[1609825648640,0.13632608,30626.0,30575.0,5.2544]
[1609825648840,0.26290608,30626.0,30575.0,5.2544]
[1609825649041,0.12658,30626.0,30528.0,0.0973]
[1609825649241,4.9174,30617.0,30549.0,5.146]
[1609825649441,5.03534,30617.0,30549.0,5.146]
[1609825650241,0.13632608,30559.0,30519.0,2.27884193]
[1609825650440,0.14456,30567.0,30519.0,2.27884193]
[1609825650641,0.14456,30567.0,30521.0,0.63523357]
[1609825651343,0.14456,30567.0,30523.0,2.28159807]
[1609825652142,0.13632608,30535.0,30529.0,0.13632608]
[1609825652343,0.13632608,30535.0,30521.0,0.13723]
[1609825654144,0.13632608,30522.0,30521.0,0.13723]
[1609825654545,0.13632608,30522.0,30514.0,0.13632608]
[1609825654943,0.15136,30538.0,30464.0,2.31438058]
[1609825655143,0.15136,30538.0,30468.0,0.12523134]
[1609825656446,0.15136,30538.0,30470.0,2.3245884]
[1609825656645,0.15136,30538.0,30502.0,0.13632608]
[1609825656851,0.15136,30538.0,30502.0,0.1229]
[1609825657045,0.90576,30538.0,30502.0,0.1229]
[1609825657453,0.15136,30538.0,30502.0,0.1229]
[1609825657846,0.13115,30546.0,30502.0,0.1229]
[1609825658051,0.49125892,30555.0,30502.0,0.1229]
[1609825658255,4.39765892,30555.0,30502.0,0.1229]
[1609825658453,3.9064,30555.0,30502.0,0.1229]
[1609825659249,0.13632608,30513.0,30509.0,0.13632608]
[1609825659447,0.13632608,30513.0,30502.0,0.1229]
[1609825661052,0.13632608,30513.0,30468.0,5.12413134]
[1609825661249,0.13632608,30502.0,30495.0,0.13632608]
[1609825662449,0.13632608,30502.0,30468.0,5.12413134]
[1609825662650,0.13632608,30502.0,30468.0,0.12523134]
[1609825663252,0.13632608,30489.0,30468.0,0.12523134]
[1609825664052,5.1808,30509.0,30468.0,0.12523134]
[1609825665353,0.13632608,30491.0,30486.0,0.13632608]
[1609825666454,0.13632608,30491.0,30468.0,0.12523134]
[1609825667257,0.13632608,30481.0,30468.0,0.12523134]
[1609825667457,4.3482,30493.0,30468.0,0.12523134]
[1609825668459,4.3482,30493.0,30468.0,0.15368]
[1609825669259,0.13632608,30469.0,30468.0,0.15368]
[1609825670061,0.10922,30499.0,30468.0,0.15368]
[1609825670261,0.10922,30499.0,30434.0,3.9857]
[1609825670262,3.9953,30489.0,30434.0,3.9857]
[1609825670461,3.9953,30489.0,30468.0,0.09687]
[1609825671262,3.9953,30489.0,30434.0,3.9857]
[1609825672062,0.13632608,30445.0,30444.0,0.13632608]
[1609825672262,0.13437,30475.0,30434.0,3.9857]
[1609825672462,0.13437,30475.0,30434.0,4.08873]
[1609825674166,0.5857,30474.0,30434.0,4.08873]
[1609825674367,0.13437,30475.0,30447.0,0.13632608]
[1609825674567,3.7822,30467.0,30447.0,0.25441608]
[1609825674766,3.7822,30467.0,30447.0,0.11809]
[1609825676471,0.13632608,30448.0,30447.0,0.11809]
[1609825677069,3.7822,30467.0,30447.0,0.11809]
[1609825677673,0.13437,30475.0,30447.0,0.11809]
[1609825677871,0.1495,30491.0,30447.0,0.11809]
[1609825678074,4.1668,30494.0,30447.0,0.11809]
[1609825678771,4.1668,30494.0,30454.0,0.13632608]
[1609825678973,4.1668,30494.0,30454.0,0.12969]
[1609825679371,0.49233706,30488.0,30454.0,0.12969]
[1609825679571,0.63081706,30488.0,30454.0,0.12969]
[1609825679974,0.13848,30488.0,30454.0,0.12969]
[1609825680774,0.13632608,30455.0,30454.0,0.12969]
[1609825681172,4.3654,30455.0,30447.0,0.01448]
[1609825681372,4.3654,30455.0,30434.0,0.10303]
[1609825681574,4.3654,30455.0,30405.0,4.2743]
[1609825682773,0.13632608,30418.0,30401.0,0.13632608]
[1609825683174,0.13632608,30418.0,30378.0,5.3144]
[1609825683373,0.13632608,30418.0,30350.0,0.1001]
[1609825683574,0.13632608,30418.0,30374.0,0.0973]
[1609825683773,0.13632608,30418.0,30370.0,4.1615]
[1609825684176,0.13632608,30418.0,30371.0,0.2827]
[1609825684375,0.13632608,30418.0,30362.0,0.01164004]
[1609825684574,5.3072,30398.0,30362.0,0.01164004]
[1609825684775,0.13632608,30367.0,30362.0,0.01164004]
[1609825684975,0.28,30427.0,30362.0,0.01164004]
[1609825685175,3.851,30368.0,30362.0,0.12457004]
[1609825685976,0.15045,30389.0,30326.0,2.08669017]
[1609825686176,0.15045,30389.0,30326.0,2.21826017]
[1609825686978,4.4952,30382.0,30326.0,2.21826017]
[1609825687378,4.4952,30382.0,30326.0,0.13157]
[1609825687577,4.61826,30382.0,30326.0,0.13157]
[1609825687777,0.12306,30382.0,30326.0,0.13157]
[1609825688176,4.0154,30359.0,30326.0,0.13157]
[1609825688777,0.2835,30381.0,30326.0,0.13157]
[1609825689179,0.12306,30382.0,30326.0,0.13157]
[1609825689580,0.12306,30382.0,30369.0,0.13632608]
[1609825690180,4.0544,30409.0,30369.0,0.13632608]
[1609825690482,0.2991,30418.0,30369.0,0.13632608]
[1609825690880,0.49374589,30401.0,30363.0,0.15233]
[1609825692082,0.49374589,30401.0,30394.0,0.13632608]
[1609825692284,0.13632608,30403.0,30391.0,0.1518]
[1609825693285,0.13632608,30403.0,30363.0,0.15233]
[1609825693485,5.3265,30399.0,30363.0,0.15233]
[1609825693684,5.44223,30399.0,30363.0,0.15233]
[1609825694787,5.44223,30399.0,30326.0,3.85337]
[1609825695288,5.44223,30399.0,30327.0,0.1001]
[1609825695488,5.3265,30399.0,30327.0,0.1001]
[1609825695689,0.12453,30428.0,30327.0,0.1001]
[1609825695888,0.12453,30428.0,30354.0,5.4614]
[1609825696088,5.0889,30472.0,30354.0,5.57385]
[1609825697093,5.0889,30472.0,30355.0,0.0996]
[1609825697291,0.13632608,30448.0,30437.0,0.13632608]
[1609825697492,0.29439608,30448.0,30437.0,0.13632608]
[1609825697892,0.15807,30448.0,30437.0,0.13632608]
[1609825698291,0.60692309,30462.0,30437.0,0.13632608]
[1609825698495,0.60692309,30462.0,30437.0,0.25727608]
[1609825698892,0.11416,30462.0,30437.0,0.12095]
[1609825699292,0.49342268,30476.0,30437.0,0.12095]
[1609825699495,0.49342268,30476.0,30461.0,0.13632608]
[1609825699893,0.65789474,30491.0,30461.0,0.13632608]
[1609825700092,0.46156011,30525.0,30461.0,0.23566608]
[1609825700292,0.46156011,30525.0,30461.0,0.09934]
[1609825700493,0.46332896,30537.0,30461.0,0.09934]
[1609825701195,0.46487317,30550.0,30461.0,0.09934]
[1609825701393,0.13632608,30496.0,30490.0,0.13632608]
[1609825701593,0.24112608,30496.0,30461.0,0.09934]
[1609825702194,0.1048,30496.0,30461.0,0.09934]
[1609825702594,0.1048,30496.0,30461.0,4.76684]
[1609825702796,0.11058,30496.0,30461.0,4.76684]
[1609825702994,0.01128,30496.0,30461.0,4.76684]
[1609825703396,0.01128,30496.0,30495.0,0.13632608]
[1609825704198,0.49157487,30536.0,30495.0,0.28385608]
[1609825704396,5.6159,30558.0,30495.0,0.28385608]
[1609825705200,5.6159,30558.0,30496.0,0.0971]
[1609825705401,0.13632608,30534.0,30529.0,0.13632608]
[1609825705600,0.29524608,30534.0,30529.0,0.13632608]
[1609825705800,0.15892,30534.0,30529.0,0.13632608]
[1609825706000,0.25792,30534.0,30529.0,0.13632608]
[1609825706200,0.15892,30534.0,30529.0,0.13632608]
[1609825706603,0.49221396,30551.0,30530.0,0.0974]
[1609825706802,0.12443,30534.0,30530.0,0.0974]
[1609825707204,0.0978,30533.0,30530.0,0.0974]
[1609825707603,0.13346,30542.0,30520.0,0.11148]
[1609825709104,0.0979,30541.0,30521.0,0.0976]
[1609825709807,0.13346,30542.0,30520.0,0.11148]
[1609825710604,0.08896,30542.0,30520.0,0.11148]
[1609825711207,0.0993,30545.0,30520.0,0.11148]
[1609825711407,0.13632608,30563.0,30520.0,0.11148]
[1609825711906,0.69952415,30589.0,30512.0,3.9865]
[1609825712107,0.69952415,30589.0,30512.0,4.09169]
[1609825713111,0.47868336,30577.0,30512.0,4.09169]
[1609825713311,0.13632608,30557.0,30512.0,0.10519]
[1609825713511,0.14692,30557.0,30512.0,0.10519]
[1609825715412,0.14692,30557.0,30556.0,0.13632608]
[1609825715613,0.23406608,30577.0,30556.0,0.13433038]
[1609825715813,0.09774,30577.0,30556.0,0.13433038]
[1609825716812,0.09774,30577.0,30549.0,0.13642]
[1609825717415,0.13632608,30554.0,30542.0,0.11236]
[1609825717612,0.15738,30558.0,30542.0,0.11236]
[1609825718614,0.09774,30577.0,30542.0,0.11236]
[1609825718815,0.48578757,30607.0,30542.0,0.11236]
[1609825719415,5.2585,30629.0,30542.0,0.11236]
[1609825719416,0.13632608,30579.0,30542.0,0.11236]
[1609825719614,0.24936608,30579.0,30542.0,0.11236]
[1609825719815,0.11304,30579.0,30542.0,0.11236]
[1609825720617,0.11304,30579.0,30540.0,4.1405]
[1609825721618,0.11304,30579.0,30512.0,0.10519]
[1609825721819,0.13632608,30560.0,30556.0,0.13632608]
[1609825722018,0.23992608,30560.0,30508.0,3.7468]
[1609825723820,0.23992608,30560.0,30470.0,0.097]
[1609825724021,0.13632608,30540.0,30530.0,0.13632608]
[1609825724221,0.25680608,30540.0,30530.0,0.13632608]
[1609825724920,0.25680608,30540.0,30503.0,5.0018]
[1609825725922,0.12048,30540.0,30503.0,5.0018]
[1609825726322,0.12048,30540.0,30514.0,0.13632608]
[1609825726323,0.13632608,30518.0,30514.0,0.13632608]
[1609825726521,0.16016,30518.0,30514.0,0.13632608]
[1609825728325,0.00586,30518.0,30514.0,0.13632608]
[1609825729025,0.12048,30540.0,30503.0,5.0018]
[1609825729228,0.2837,30559.0,30503.0,5.13701]
[1609825730528,0.13632608,30533.0,30524.0,0.13632608]
[1609825730725,0.28979608,30533.0,30524.0,0.13632608]
[1609825731126,0.15347,30533.0,30524.0,0.13632608]
[1609825732430,0.13632608,30531.0,30503.0,5.0018]
[1609825734432,0.15347,30533.0,30518.0,0.13632608]
[1609825735936,0.13632608,30537.0,30518.0,0.13632608]
[1609825736437,0.13632608,30523.0,30518.0,0.13632608]
[1609825736637,0.25446608,30523.0,30495.0,0.11946]
[1609825736837,0.25446608,30523.0,28000.0,1.14]
[1609825736838,0.25446608,30523.0,30472.0,4.9041]
[1609825737236,0.11814,30523.0,30472.0,4.9041]
[1609825738440,0.13632608,30499.0,30493.0,0.13632608]
[1609825738639,0.27654608,30499.0,30493.0,0.13632608]
[1609825739037,0.14022,30499.0,30493.0,0.13632608]
[1609825739838,0.1281,30507.0,30493.0,0.13632608]
[1609825740441,0.1281,30507.0,30498.0,0.13632608]
[1609825742345,0.11814,30523.0,30498.0,0.13632608]
[1609825742546,0.283,30539.0,30517.0,0.13632608]
[1609825742748,0.2716,30558.0,30517.0,0.13632608]
[1609825742948,0.2716,30558.0,30498.0,0.13063]
[1609825742949,0.2716,30558.0,30512.0,5.3059]
[1609825743551,0.49148087,30541.0,30512.0,5.3059]
[1609825743948,0.61021087,30541.0,30512.0,5.3059]
[1609825744549,0.13632608,30532.0,30530.0,0.13632608]
[1609825744750,0.27070608,30532.0,30530.0,0.13632608]
[1609825744950,0.13438,30532.0,30512.0,5.3059]
[1609825745754,0.13438,30532.0,30498.0,0.13063]
[1609825747755,0.13438,30532.0,30492.0,4.5538]
[1609825748159,0.13438,30532.0,30491.0,0.15245]
[1609825748358,0.13438,30532.0,30475.0,4.5799]
[1609825748758,0.13632608,30508.0,30502.0,0.13632608]
[1609825748959,0.13438,30532.0,30502.0,0.13632608]
[1609825749161,0.10038,30509.0,30502.0,0.13632608]
[1609825749365,0.10038,30509.0,30496.0,4.2364]
[1609825749957,8e-05,30509.0,30496.0,4.2364]
[1609825750157,0.1438,30519.0,30496.0,4.2364]
[1609825750758,0.1438,30519.0,30518.0,0.13632608]
[1609825750958,0.13438,30532.0,30518.0,0.13632608]
[1609825751157,0.11873,30541.0,30518.0,0.13632608]
[1609825751361,0.13632608,30542.0,30518.0,0.13632608]
[1609825752861,0.2918,30564.0,30537.0,0.13632608]
[1609825754863,0.13632608,30553.0,30542.0,0.13632608]
[1609825755063,0.11725,30553.0,30542.0,0.13632608]
[1609825755472,0.4910798,30566.0,30542.0,0.83532608]
[1609825755663,0.12809,30553.0,30542.0,0.83532608]
[1609825756063,0.12809,30553.0,30542.0,0.699]